fUST/lending_fUST_20260601
["ID","MTS","AMOUNT","RATE_DAILY","PERIOD"]
[423597595,1780257046000,-500.0,0.00017808,2]
[423597572,1780257046000,-500.0,0.00017534,2]
[423597597,1780257046000,-822.24,0.00017808,2]
[423597601,1780257046000,-947.79,0.00017808,2]
[423597756,1780257047000,-500.0,0.00018356,2]
[423597754,1780257047000,-878.95,0.00018356,2]
[423597770,1780257047000,-178.40824396,0.000185,2]
[423597782,1780257047000,-947.79,0.0001863,2]
[423597761,1780257047000,-1075.27,0.00018356,2]
[423597759,1780257047000,-500.0,0.00018356,2]
[423597760,1780257047000,-523.3,0.00018356,2]
[423597763,1780257047000,-726.174,0.000184,2]
[423597768,1780257047000,-726.174,0.000185,2]
[423597758,1780257047000,-500.0,0.00018356,2]
[423597765,1780257047000,-200.22809632,0.00018425,2]
[423597755,1780257047000,-500.0,0.00018356,2]
[423597772,1780257047000,-314.72655074,0.000186,2]
[423597774,1780257047000,-533.0,0.0001863,2]
[423597788,1780257047000,-500.0,0.0001863,2]
[423597786,1780257047000,-574.74,0.0001863,2]
[423597778,1780257047000,-822.24,0.0001863,2]
[423597780,1780257047000,-573.73,0.0001863,2]
[423597790,1780257047000,-1480.99,0.0001863,2]
[423597784,1780257047000,-500.0,0.0001863,2]
[423597796,1780257047000,-500.0,0.0001863,2]
[423597792,1780257047000,-500.0,0.0001863,2]
[423597794,1780257047000,-997.78,0.0001863,2]
[423597766,1780257047000,-314.72655074,0.000185,2]
[423597810,1780257047000,-500.0,0.0001863,2]
[423597776,1780257047000,-500.0,0.0001863,2]
[423597757,1780257047000,-11553.76,0.00018356,2]
[423597711,1780257047000,-1075.27,0.00018082,2]
[423597752,1780257047000,-500.0,0.00018356,2]
[423597814,1780257047000,-1075.27,0.0001863,2]
[423597700,1780257047000,-523.3,0.00018082,2]
[423597696,1780257047000,-500.0,0.00018082,2]
[423597698,1780257047000,-500.0,0.00018082,2]
[423597693,1780257047000,-500.0,0.00018082,2]
[423597691,1780257047000,-500.0,0.00018082,2]
[423597694,1780257047000,-11553.76,0.00018082,2]
[423597715,1780257047000,-178.40824396,0.000181,2]
[423597717,1780257047000,-726.174,0.000182,2]
[423597720,1780257047000,-166.63363321,0.00018228,2]
[423597713,1780257047000,-314.72655074,0.000181,2]
[423597722,1780257047000,-314.72655074,0.000183,2]
[423597724,1780257047000,-178.40824396,0.000183,2]
[423597726,1780257047000,-533.0,0.00018356,2]
[423597734,1780257047000,-573.73,0.00018356,2]
[423597740,1780257047000,-574.74,0.00018356,2]
[423597730,1780257047000,-310.44,0.00018356,2]
[423597742,1780257047000,-500.0,0.00018356,2]
[423597738,1780257047000,-500.0,0.00018356,2]
[423597737,1780257047000,-947.79,0.00018356,2]
[423597746,1780257047000,-500.0,0.00018356,2]
[423597728,1780257047000,-500.0,0.00018356,2]
[423597744,1780257047000,-1480.99,0.00018356,2]
[423597732,1780257047000,-822.24,0.00018356,2]
[423597748,1780257047000,-997.78,0.00018356,2]
[423597750,1780257047000,-500.0,0.00018356,2]
[423597812,1780257047000,-523.3,0.0001863,2]
[423597689,1780257047000,-221.73544003,0.00018082,2]
[423597800,1780257047000,-878.95,0.0001863,2]
[423597877,1780257047000,-822.24,0.00019178,2]
[423597858,1780257047000,-1075.27,0.00018904,2]
[423597875,1780257047000,-300.0,0.00019178,2]
[423597867,1780257047000,-55311.34298732,0.0001917,3]
[423597871,1780257047000,-533.0,0.00019178,2]
[423597873,1780257047000,-500.0,0.00019178,2]
[423597882,1780257047000,-947.79,0.00019178,2]
[423597893,1780257047000,-500.0,0.00019178,2]
[423597891,1780257047000,-997.78,0.00019178,2]
[423597895,1780257047000,-444.87,0.00019178,2]
[423597889,1780257047000,-1480.99,0.00019178,2]
[423597879,1780257047000,-573.73,0.00019178,2]
[423597885,1780257047000,-574.74,0.00019178,2]
[423597883,1780257047000,-294.03,0.00019178,2]
[423597888,1780257047000,-192.55,0.00019178,2]
[423597899,1780257047000,-878.95,0.00019178,2]
[423597913,1780257047000,-533.0,0.00019452,2]
[423597904,1780257047000,-499.25,0.00019178,2]
[423597907,1780257047000,-523.3,0.00019178,2]
[423597910,1780257047000,-1075.27,0.00019178,2]
[423597901,1780257047000,-11553.76,0.00019178,2]
[423597915,1780257047000,-500.0,0.00019452,2]
[423597921,1780257047000,-573.73,0.00019452,2]
[423597923,1780257047000,-947.79,0.00019452,2]
[423597816,1780257047000,-726.174,0.000187,2]
[423597865,1780257047000,-179.92802879,0.00018979,2]
[423597861,1780257047000,-244.0,0.00018957,2]
[423597918,1780257047000,-822.24,0.00019452,2]
[423597859,1780257047000,-1000.0,0.00018957,2]
[423597863,1780257047000,-350.09441,0.00018974,2]
[423597798,1780257047000,-500.0,0.0001863,2]
[423597818,1780257047000,-268.405715,0.00018794,2]
[423597806,1780257047000,-11553.76,0.0001863,2]
[423597802,1780257047000,-500.0,0.0001863,2]
[423597808,1780257047000,-500.0,0.0001863,2]
[423597822,1780257047000,-500.0,0.00018904,2]
[423597820,1780257047000,-533.0,0.00018904,2]
[423597824,1780257047000,-822.24,0.00018904,2]
[423597826,1780257047000,-573.73,0.00018904,2]
[423597842,1780257047000,-500.0,0.00018904,2]
[423597830,1780257047000,-500.0,0.00018904,2]
[423597850,1780257047000,-514.33,0.00018904,2]
[423597804,1780257047000,-500.0,0.0001863,2]
[423597846,1780257047000,-878.95,0.00018904,2]
[423597832,1780257047000,-574.74,0.00018904,2]
[423597869,1780257047000,-767.37531181,0.0001917,3]
[423597852,1780257047000,-11553.76,0.00018904,2]
[423597848,1780257047000,-233.34,0.00018904,2]
[423597844,1780257047000,-500.0,0.00018904,2]
[423597856,1780257047000,-523.3,0.00018904,2]
[423597838,1780257047000,-464.93,0.00018904,2]
[423597828,1780257047000,-947.79,0.00018904,2]
[423597836,1780257047000,-1480.99,0.00018904,2]
[423597834,1780257047000,-500.0,0.00018904,2]
[423597840,1780257047000,-997.78,0.00018904,2]
[423597854,1780257047000,-500.0,0.00018904,2]
[423597994,1780257048000,-574.75,0.0002,2]
[423597992,1780257048000,-948.0,0.0002,2]
[423598018,1780257048000,-151.13,0.00020548,2]
[423598004,1780257048000,-11553.83638655,0.0002,2]
[423597990,1780257048000,-573.75,0.0002,2]
[423597997,1780257048000,-1481.06,0.0002,2]
[423598001,1780257048000,-878.96,0.0002,2]
[423598006,1780257048000,-523.52,0.0002,2]
[423598019,1780257048000,-151.13,0.00020548,2]
[423598008,1780257048000,-1075.49,0.0002,2]
[423598023,1780257048000,-1000.0,0.00020852,2]
[423598020,1780257048000,-151.07,0.00020548,2]
[423598025,1780257048000,-492.0,0.00020852,2]
[423598013,1780257048000,-151.08,0.000205,2]
[423598016,1780257048000,-309.420336,0.00020548,2]
[423598026,1780257048000,-300000.0,0.0002087,30]
[423598032,1780257048000,-4920.33,0.0002087,2]
[423598042,1780257048000,-2683.81,0.0002087,2]
[423598036,1780257048000,-4920.34,0.0002087,2]
[423597988,1780257048000,-822.43,0.0002,2]
[423598044,1780257048000,-767.37531181,0.0002088,7]
[423598011,1780257048000,-223.352501,0.00020453,2]
[423597999,1780257048000,-997.86,0.0002,2]
[423597958,1780257048000,-947.79,0.00019726,2]
[423597975,1780257048000,-523.3,0.00019726,2]
[423598028,1780257048000,-767.37531181,0.0002087,30]
[423597933,1780257048000,-500.0,0.00019452,2]
[423597936,1780257048000,-878.95,0.00019452,2]
[423597928,1780257048000,-1480.99,0.00019452,2]
[423597926,1780257048000,-574.74,0.00019452,2]
[423597939,1780257048000,-11553.76,0.00019452,2]
[423597931,1780257048000,-997.78,0.00019452,2]
[423597941,1780257048000,-523.3,0.00019452,2]
[423597953,1780257048000,-822.24,0.00019726,2]
[423597963,1780257048000,-1480.99,0.00019726,2]
[423597955,1780257048000,-573.73,0.00019726,2]
[423597946,1780257048000,-767.37531181,0.000197,3]
[423597950,1780257048000,-455.79,0.00019726,2]
[423597948,1780257048000,-533.0,0.00019726,2]
[423597943,1780257048000,-1075.27,0.00019452,2]
[423597960,1780257048000,-574.74,0.00019726,2]
[423597970,1780257048000,-878.95,0.00019726,2]
[423597980,1780257048000,-2502.5969297,0.00019896,2]
[423597985,1780257048000,-533.23,0.0002,2]
[423597968,1780257048000,-514.18,0.00019726,2]
[423597965,1780257048000,-997.78,0.00019726,2]
[423597982,1780257048000,-300.0,0.0002,4]
[423597973,1780257048000,-11553.76,0.00019726,2]
[423597978,1780257048000,-1075.27,0.00019726,2]
[423598040,1780257048000,-4696.68,0.0002087,7]
[423598034,1780257048000,-4920.33,0.0002087,2]
[423598046,1780257048000,-151.0,0.00020882,6]
[423598079,1780257048000,-727.332978,0.00020996,2]
[423598075,1780257048000,-727.332978,0.00020996,2]
[423598085,1780257048000,-184.234333,0.00020996,2]
[423598076,1780257048000,-727.332978,0.00020996,2]
[423598077,1780257048000,-727.332978,0.00020996,2]
[423598074,1780257048000,-727.332978,0.00020996,2]
[423598080,1780257048000,-727.332981,0.00020996,2]
[423598081,1780257048000,-151.0,0.00020996,2]
[423598084,1780257048000,-151.0,0.00020996,2]
[423598083,1780257048000,-259.930067,0.00020996,2]
[423598078,1780257048000,-727.332978,0.00020996,2]
[423598091,1780257048000,-1302.811406,0.00020996,2]
[423598095,1780257048000,-1302.811406,0.00020996,2]
[423598096,1780257048000,-1302.811406,0.00020996,2]
[423598097,1780257048000,-1302.811406,0.00020996,2]
[423598090,1780257048000,-1302.811406,0.00020996,2]
[423598086,1780257048000,-1302.811406,0.00020996,2]
[423598087,1780257048000,-1302.811406,0.00020996,2]
[423598093,1780257048000,-1302.811406,0.00020996,2]
[423598088,1780257048000,-1302.811406,0.00020996,2]
[423598089,1780257048000,-1302.811406,0.00020996,2]
[423598038,1780257048000,-4696.68,0.0002087,7]
[423598094,1780257048000,-1302.811406,0.00020996,2]
[423598082,1780257048000,-151.0,0.00020996,2]
[423598092,1780257048000,-1302.811406,0.00020996,2]
[423598068,1780257048000,-727.332978,0.00020996,2]
[423598030,1780257048000,-420.24,0.0002087,2]
[423598070,1780257048000,-727.332978,0.00020996,2]
[423598058,1780257048000,-150.0,0.00020996,7]
[423598048,1780257048000,-151.0,0.00020887,6]
[423598054,1780257048000,-4866.92628256,0.00020996,7]
[423598053,1780257048000,-5637.47091117,0.00020996,7]
[423598052,1780257048000,-276.15957825,0.00020996,5]
[423598055,1780257048000,-157.91869811,0.00020996,7]
[423598060,1780257048000,-500.0,0.00020996,7]
[423598057,1780257048000,-19605.11320787,0.00020996,7]
[423598059,1780257048000,-150.54295392,0.00020996,7]
[423598050,1780257048000,-2884.62647883,0.00020887,120]
[423598064,1780257048000,-727.332978,0.00020996,2]
[423598062,1780257048000,-727.332978,0.00020996,2]
[423598056,1780257048000,-180.58831905,0.00020996,7]
[423598065,1780257048000,-727.332978,0.00020996,2]
[423598069,1780257048000,-727.332978,0.00020996,2]
[423598072,1780257048000,-727.332978,0.00020996,2]
[423598071,1780257048000,-727.332978,0.00020996,2]
[423598067,1780257048000,-727.332978,0.00020996,2]
[423598066,1780257048000,-727.332978,0.00020996,2]
[423598061,1780257048000,-727.332978,0.00020996,2]
[423598063,1780257048000,-727.332978,0.00020996,2]
[423598073,1780257048000,-727.332978,0.00020996,2]
[423598150,1780257049000,-658.18649,0.00020996,2]
[423598149,1780257049000,-658.18649,0.00020996,2]
[423598138,1780257049000,-554.202364,0.00020996,2]
[423598141,1780257049000,-650.843757,0.00020996,2]
[423598142,1780257049000,-554.202364,0.00020996,2]
[423598129,1780257049000,-650.843757,0.00020996,2]
[423598127,1780257049000,-650.843757,0.00020996,2]
[423598137,1780257049000,-650.843757,0.00020996,2]
[423598134,1780257049000,-554.202364,0.00020996,2]
[423598128,1780257049000,-554.202364,0.00020996,2]
[423598144,1780257049000,-554.202365,0.00020996,2]
[423598131,1780257049000,-650.843757,0.00020996,2]
[423598146,1780257049000,-658.18649,0.00020996,2]
[423598143,1780257049000,-650.843757,0.00020996,2]
[423598151,1780257049000,-658.18649,0.00020996,2]
[423598145,1780257049000,-650.843757,0.00020996,2]
[423598147,1780257049000,-658.18649,0.00020996,2]
[423598140,1780257049000,-554.202364,0.00020996,2]
[423598148,1780257049000,-658.18649,0.00020996,2]
[423598152,1780257049000,-658.18649,0.00020996,2]
[423598157,1780257049000,-658.18649,0.00020996,2]
[423598162,1780257049000,-658.18649,0.00020996,2]
[423598154,1780257049000,-658.18649,0.00020996,2]
[423598161,1780257049000,-658.18649,0.00020996,2]
[423598155,1780257049000,-658.18649,0.00020996,2]
[423598158,1780257049000,-658.18649,0.00020996,2]
[423598160,1780257049000,-658.18649,0.00020996,2]
[423598153,1780257049000,-658.18649,0.00020996,2]
[423598133,1780257049000,-650.843757,0.00020996,2]
[423598139,1780257049000,-650.843757,0.00020996,2]
[423598124,1780257049000,-554.202364,0.00020996,2]
[423598102,1780257049000,-1302.811406,0.00020996,2]
[423598130,1780257049000,-554.202364,0.00020996,2]
[423598159,1780257049000,-658.18649,0.00020996,2]
[423598103,1780257049000,-1302.811406,0.00020996,2]
[423598101,1780257049000,-1302.811406,0.00020996,2]
[423598109,1780257049000,-554.202364,0.00020996,2]
[423598106,1780257049000,-554.202364,0.00020996,2]
[423598107,1780257049000,-650.843757,0.00020996,2]
[423598098,1780257049000,-1302.811406,0.00020996,2]
[423598100,1780257049000,-1302.811406,0.00020996,2]
[423598108,1780257049000,-650.843757,0.00020996,2]
[423598104,1780257049000,-1302.811406,0.00020996,2]
[423598105,1780257049000,-1302.811398,0.00020996,2]
[423598111,1780257049000,-554.202364,0.00020996,2]
[423598112,1780257049000,-650.843757,0.00020996,2]
[423598120,1780257049000,-554.202364,0.00020996,2]
[423598115,1780257049000,-554.202364,0.00020996,2]
[423598121,1780257049000,-650.843757,0.00020996,2]
[423598119,1780257049000,-650.843757,0.00020996,2]
[423598114,1780257049000,-650.843757,0.00020996,2]
[423598122,1780257049000,-554.202364,0.00020996,2]
[423598117,1780257049000,-650.843757,0.00020996,2]
[423598110,1780257049000,-650.843757,0.00020996,2]
[423598118,1780257049000,-554.202364,0.00020996,2]
[423598116,1780257049000,-554.202364,0.00020996,2]
[423598113,1780257049000,-554.202364,0.00020996,2]
[423598123,1780257049000,-650.843757,0.00020996,2]
[423598136,1780257049000,-554.202364,0.00020996,2]
[423598126,1780257049000,-554.202364,0.00020996,2]
[423598125,1780257049000,-650.843757,0.00020996,2]
[423598135,1780257049000,-650.843757,0.00020996,2]
[423598132,1780257049000,-554.202364,0.00020996,2]
[423598156,1780257049000,-658.18649,0.00020996,2]
[423598099,1780257049000,-1302.811406,0.00020996,2]
[423598169,1780257049000,-200.72636,0.00020996,2]
[423598201,1780257049000,-160.0,0.00024,7]
[423598197,1780257049000,-1000.0,0.00022938,10]
[423598199,1780257049000,-160.0,0.00023,3]
[423598193,1780257049000,-5000.0,0.00021836,2]
[423598205,1780257049000,-320767.946,0.00025444,2]
[423598209,1780257049000,-1067.1599566,0.00026589,2]
[423598215,1780257049000,-151.5,0.00026849,2]
[423598211,1780257049000,-152.0,0.00026675,7]
[423598207,1780257049000,-164.06868266,0.00026298,2]
[423598210,1780257049000,-500.0,0.000266,2]
[423598204,1780257049000,-1000.0,0.00025231,10]
[423598206,1780257049000,-100000.0,0.0002619,30]
[423598203,1780257049000,-1000.0,0.00025231,10]
[423598213,1780257049000,-152.0,0.00026766,30]
[423598212,1780257049000,-152.0,0.00026675,7]
[423598214,1780257049000,-152.0,0.00026803,7]
[423598208,1780257049000,-207.84598772,0.000265,2]
[423598223,1780257049000,-500.0,0.00026849,2]
[423598227,1780257049000,-200.0,0.0002719,2]
[423598220,1780257049000,-617.42728758,0.00026849,2]
[423598222,1780257049000,-500.0,0.00026849,2]
[423598216,1780257049000,-151.5,0.00026849,2]
[423598217,1780257049000,-157.46656873,0.00026849,2]
[423598225,1780257049000,-767.37531181,0.00027,7]
[423598224,1780257049000,-506.0136489,0.00026849,2]
[423598218,1780257049000,-500.0,0.00026849,2]
[423598226,1780257049000,-288.99768728,0.00027148,2]
[423598219,1780257049000,-500.0,0.00026849,2]
[423598172,1780257049000,-151.0,0.00020996,2]
[423598190,1780257049000,-5008.30502997,0.00021836,2]
[423598195,1780257049000,-151.08,0.000219,2]
[423598221,1780257049000,-500.0,0.00026849,2]
[423598189,1780257049000,-164.06868266,0.00021763,2]
[423598191,1780257049000,-5000.0,0.00021836,2]
[423598165,1780257049000,-658.186482,0.00020996,2]
[423598167,1780257049000,-151.0,0.00020996,2]
[423598164,1780257049000,-658.18649,0.00020996,2]
[423598163,1780257049000,-658.18649,0.00020996,2]
[423598168,1780257049000,-186.629841,0.00020996,2]
[423598166,1780257049000,-151.0,0.00020996,2]
[423598174,1780257049000,-151.0,0.00020996,2]
[423598173,1780257049000,-151.0,0.00020996,2]
[423598170,1780257049000,-151.0,0.00020996,2]
[423598179,1780257049000,-151.0,0.00020996,2]
[423598180,1780257049000,-151.0,0.00020996,2]
[423598188,1780257049000,-767.37531181,0.000215,30]
[423598175,1780257049000,-151.0,0.00020996,2]
[423598183,1780257049000,-442.85,0.00021116,2]
[423598171,1780257049000,-151.0,0.00020996,2]
[423598184,1780257049000,-2255.127,0.00021116,2]
[423598186,1780257049000,-151.08,0.000212,2]
[423598198,1780257049000,-791.0,0.00022938,10]
[423598196,1780257049000,-767.37531181,0.000221,30]
[423598202,1780257049000,-1000.0,0.00024312,5]
[423598200,1780257049000,-160.0,0.00023,2]
[423598185,1780257049000,-1835.0,0.00021116,2]
[423598192,1780257049000,-5000.0,0.00021836,2]
[423598187,1780257049000,-795.0,0.000213,2]
[423598181,1780257049000,-151.0,0.00020996,2]
[423598182,1780257049000,-260.653774,0.00020996,2]
[423598176,1780257049000,-151.0,0.00020996,2]
[423598194,1780257049000,-5000.0,0.00021836,2]
[423598177,1780257049000,-151.0,0.00020996,2]
[423598178,1780257049000,-151.0,0.00020996,2]
[423598268,1780257050000,-160.0,0.00029073,3]
[423598259,1780257050000,-1940.82213362,0.00029,120]
[423598271,1780257050000,-200.0,0.00029365,120]
[423598260,1780257050000,-205.17742,0.00029,120]
[423598266,1780257050000,-1500.0,0.00029,2]
[423598261,1780257050000,-238.78674,0.00029,120]
[423598263,1780257050000,-238.78675,0.00029,120]
[423598270,1780257050000,-200.0,0.0002929,2]
[423598264,1780257050000,-2000.0,0.00029,10]
[423598262,1780257050000,-238.78674,0.00029,120]
[423598265,1780257050000,-1000.0,0.00029,29]
[423598267,1780257050000,-1029.0,0.00029,2]
[423598273,1780257050000,-500.0,0.000294,5]
[423598272,1780257050000,-2000.0,0.000294,120]
[423598274,1780257050000,-1500.0,0.000295,2]
[423598284,1780257050000,-271.68129827,0.0003,2]
[423598283,1780257050000,-20000.0,0.0003,3]
[423598275,1780257050000,-164.0,0.000296,120]
[423598278,1780257050000,-5000.0,0.000299,120]
[423598280,1780257050000,-50546.54056116,0.000299,120]
[423598282,1780257050000,-1046.6813947,0.0002996,2]
[423598281,1780257050000,-6952.2444694,0.0002996,2]
[423598279,1780257050000,-5000.0,0.000299,120]
[423598277,1780257050000,-262.54,0.000299,120]
[423598258,1780257050000,-2000.0,0.00029,30]
[423598276,1780257050000,-200.0,0.0002971,2]
[423598269,1780257050000,-160.0,0.00029073,5]
[423598254,1780257050000,-164.0,0.000289,120]
[423598239,1780257050000,-398.41532692,0.00028,2]
[423598256,1780257050000,-897.34428177,0.00029,2]
[423598297,1780257050000,-15670.07368624,0.0003,120]
[423598228,1780257050000,-280.41027061,0.0002739,7]
[423598232,1780257050000,-579.0,0.00027754,30]
[423598233,1780257050000,-500.0,0.00027988,10]
[423598234,1780257050000,-473535.38861557,0.00028,60]
[423598240,1780257050000,-398.41532692,0.00028,2]
[423598241,1780257050000,-2856.462146,0.00028,2]
[423598230,1780257050000,-1000.0,0.00027754,30]
[423598237,1780257050000,-1000.0,0.00028,120]
[423598236,1780257050000,-155324.00547471,0.00028,120]
[423598235,1780257050000,-253693.06530498,0.00028,120]
[423598229,1780257050000,-200.0,0.0002761,2]
[423598231,1780257050000,-1000.0,0.00027754,30]
[423598238,1780257050000,-500.0,0.00028,5]
[423598242,1780257050000,-1032.0,0.00028,2]
[423598246,1780257050000,-200.0,0.0002845,2]
[423598247,1780257050000,-180.05397301,0.00028469,2]
[423598243,1780257050000,-200.0,0.0002803,2]
[423598248,1780257050000,-1961.27135047,0.0002849,120]
[423598244,1780257050000,-164.0,0.000282,120]
[423598245,1780257050000,-1000.0,0.000284,120]
[423598250,1780257050000,-5909.97527152,0.0002876,30]
[423598249,1780257050000,-1500.0,0.000285,2]
[423598251,1780257050000,-4000.0,0.0002876,5]
[423598257,1780257050000,-295.40779,0.00029,120]
[423598255,1780257050000,-933.52920429,0.00028953,2]
[423598252,1780257050000,-174.81489695,0.000288,7]
[423598253,1780257050000,-200.0,0.0002887,2]
[423598286,1780257050000,-150.0,0.0003,2]
[423598291,1780257050000,-1000.0,0.0003,120]
[423598289,1780257050000,-666.44618272,0.0003,120]
[423598316,1780257050000,-767.37531181,0.0003,10]
[423598319,1780257050000,-1500.0,0.0003,2]
[423598321,1780257050000,-1029.0,0.0003,7]
[423598327,1780257050000,-200.0,0.0003013,2]
[423598336,1780257050000,-500.0,0.0003087,5]
[423598325,1780257050000,-1431.12403969,0.0003013,120]
[423598330,1780257050000,-225.359,0.00030457,2]
[423598324,1780257050000,-15164.856819,0.0003013,120]
[423598326,1780257050000,-507.03673274,0.0003013,2]
[423598333,1780257050000,-607.0,0.0003053,30]
[423598332,1780257050000,-1000.0,0.0003053,30]
[423598337,1780257050000,-767.37531181,0.000309,120]
[423598334,1780257050000,-200.0,0.0003055,2]
[423598329,1780257050000,-335.8489,0.0003044,30]
[423598328,1780257050000,-164.0,0.000303,120]
[423598335,1780257050000,-164.06868266,0.00030832,2]
[423598339,1780257050000,-200.0,0.0003097,2]
[423598338,1780257050000,-993.54179599,0.00030953,2]
[423598340,1780257050000,-308.31374243,0.0003099,2]
[423598341,1780257050000,-489.31454062,0.00031,2]
[423598342,1780257050000,-2000.0,0.00031,120]
[423598347,1780257050000,-3000.0,0.000314,120]
[423598296,1780257050000,-13288.66880261,0.0003,120]
[423598344,1780257050000,-2555.0,0.00031,120]
[423598348,1780257050000,-164.0,0.000317,120]
[423598346,1780257050000,-376.57970429,0.00031,120]
[423598343,1780257050000,-235.26940494,0.00031,120]
[423598318,1780257050000,-160.0,0.0003,7]
[423598315,1780257050000,-150.0,0.0003,2]
[423598345,1780257050000,-164.0,0.00031,120]
[423598320,1780257050000,-767.37531181,0.0003,7]
[423598287,1780257050000,-165.46,0.0003,5]
[423598285,1780257050000,-1625.87421355,0.0003,10]
[423598290,1780257050000,-166.58471822,0.0003,120]
[423598288,1780257050000,-14175.46794063,0.0003,7]
[423598293,1780257050000,-418.03881988,0.0003,10]
[423598295,1780257050000,-300.0,0.0003,14]
[423598294,1780257050000,-8495.35951303,0.0003,10]
[423598317,1780257050000,-326.1200345,0.0003,2]
[423598302,1780257050000,-525.66596462,0.0003,30]
[423598298,1780257050000,-269.41986793,0.0003,120]
[423598303,1780257050000,-2791.0,0.0003,30]
[423598301,1780257050000,-379.11648186,0.0003,2]
[423598308,1780257050000,-1973.74122896,0.0003,2]
[423598292,1780257050000,-2000.0,0.0003,120]
[423598310,1780257050000,-369.03,0.0003,120]
[423598300,1780257050000,-20000.0,0.0003,30]
[423598314,1780257050000,-767.37531181,0.0003,10]
[423598313,1780257050000,-767.27098303,0.0003,120]
[423598323,1780257050000,-150.0,0.0003013,2]
[423598311,1780257050000,-1019.82690057,0.0003,120]
[423598312,1780257050000,-227.91,0.0003,90]
[423598322,1780257050000,-2419.71000666,0.000301,10]
[423598306,1780257050000,-1579.0,0.0003,20]
[423598305,1780257050000,-200.54,0.0003,2]
[423598309,1780257050000,-369.03,0.0003,90]
[423598299,1780257050000,-166.23481236,0.0003,60]
[423598307,1780257050000,-1500.0,0.0003,45]
[423598304,1780257050000,-384.0,0.0003,8]
[423598353,1780257051000,-440.42565519,0.00032,120]
[423598364,1780257051000,-8540.47415794,0.00032798,120]
[423598359,1780257051000,-252.2474349,0.0003212,30]
[423598357,1780257051000,-633.45235834,0.00032,120]
[423598355,1780257051000,-1502.48332996,0.00032,120]
[423598349,1780257051000,-767.37531181,0.000318,120]
[423598356,1780257051000,-2000.0,0.00032,120]
[423598354,1780257051000,-10000.0,0.00032,120]
[423598351,1780257051000,-202.05420209,0.00032,2]
[423598358,1780257051000,-2000.0,0.00032,120]
[423598350,1780257051000,-44230.06264508,0.000319,2]
[423598352,1780257051000,-2703.0871973,0.00032,120]
[423598367,1780257051000,-232528.5092936,0.00032798,120]
[423598360,1780257051000,-3428.97928067,0.0003212,30]
[423598366,1780257051000,-312.78266009,0.00032798,120]
[423598365,1780257051000,-2201.66351195,0.00032798,120]
[423598361,1780257051000,-164.0,0.000324,120]
[423598363,1780257051000,-18088.87278261,0.00032798,120]
[423598368,1780257051000,-55500.92222668,0.00032798,120]
[423598373,1780257051000,-2208.71175107,0.00032798,120]
[423598369,1780257051000,-3022.82559765,0.00032798,120]
[423598370,1780257051000,-5703.33613849,0.00032798,120]
[423598372,1780257051000,-5959.10783526,0.00032798,120]
[423598371,1780257051000,-827.55422988,0.00032798,120]
[423598374,1780257051000,-685.0,0.00032798,120]
[423598375,1780257051000,-37478.57923803,0.00032798,120]
[423598362,1780257051000,-166.0,0.000325,120]
[423603117,1780258047000,-151.0,0.00011815,2]
[423603118,1780258047000,-224.06685312,0.00012081,2]
[423603115,1780258047000,-151.0,0.00011461,2]